Workbook

Sheet Flexi individual (hidden)
C3: Master | F3: Flexi Indiviudal - Insured Level | AJ3: 1
AJ4: 2
F5: Member | G5: 1 | H5: 2 | I5: 3 | J5: 4 | AJ5: 3
F6: Premium
F7: Policy Tenure | G7: 1
F8: Basic Premium | G8: =$G$7*G6 -> 0 | H8: =$G$7*H6 -> 0 | I8: =$G$7*I6 -> 0 | J8: 0
F9: Loading %
F10: Loaded Basic Premium | G10: =(G8*G9%)+G8 -> 0 | H10: =(H8*H9%)+H8 -> 0 | I10: 0 | J10: =(J8*J9%)+J8 -> 0
F11: Sum of the Premium | G11: =SUM(G10:J10) -> 0
F12: Discount %
F13: Discounted Premium | G13: =G11-(G12%*G11) -> 0
F14: Longterm Discount | G14: =IF(G7=1,0,IF(G7=2,8,IF(G7=3,15,0))) -> 0
F15: Longterm Discounted Premium | G15: =G13-(G14%*G13) -> 0
F16: Service Tax | G16: =12.36%*G15 -> 0
F17: Total Premium | G17: =G16+G15 -> 0
F20: Flexi Indiviudal - Policy Level (when Total discount > Total Loading) | L20: Flexi Indiviudal - Policy Level (when Total discount < Total Loading)
F22: Member | G22: 1 | H22: 2 | I22: 3 | J22: 4 | L22: Member | M22: 1 | N22: 2 | O22: 3 | P22: 4
F23: Premium | L23: Premium
F24: Policy Tenure | G24: 1 | L24: Policy Tenure | M24: 1
F25: Basic Premium | G25: =$G$7*G23 -> 0 | H25: =$G$7*H23 -> 0 | I25: =$G$7*I23 -> 0 | J25: 0 | L25: Basic Premium | M25: =$G$7*M23 -> 0 | N25: =$G$7*N23 -> 0 | O25: =$G$7*O23 -> 0 | P25: 0
F26: Sum of Premiums | G26: =SUM(G25:J25) -> 0 | L26: Sum of Premiums | M26: =SUM(M25:P25) -> 0
F27: Total Loading % | L27: Total Loading %
F28: Total Discount % | L28: Total Discount %
F29: Nulified | G29: =G28-G27 -> 0 | L29: Nulified | M29: =M27-M28 -> 0
F30: Discounted Premium | G30: =G26-(G29%*G26) -> 0 | L30: Loaded Premium | M30: =M26+(M29%*M26) -> 0
F31: Longterm Discount | G31: =IF(G24=1,0,IF(G24=2,8,IF(G24=3,15,0))) -> 0 | L31: Longterm Discount | M31: =IF(M24=1,0,IF(M24=2,8,IF(M24=3,15,0))) -> 0
F32: Longterm Discounted Premium | G32: =G30-(G31%*G30) -> 0 | L32: Longterm Discounted Premium | M32: =M30-(M31%*M30) -> 0
F33: Service Tax | G33: =12.36%*G32 -> 0 | L33: Service Tax | M33: =12.36%*M32 -> 0
F34: Total Premium | G34: =G33+G32 -> 0 | L34: Total Premium | M34: =M33+M32 -> 0
F37: Flexi Indiviudal - Policy Level (when Total discount = Total Loading)
F39: Member | G39: 1 | H39: 2 | I39: 3 | J39: 4
F40: Premium
F41: Policy Tenure | G41: 1
F42: Basic Premium | G42: =$G$7*G40 -> 0 | H42: =$G$7*H40 -> 0 | I42: =$G$7*I40 -> 0 | J42: 0
F43: Sum of Premiums | G43: =SUM(G42:J42) -> 0
F44: Longterm Discount | G44: =IF(G41=1,0,IF(G41=2,8,IF(G41=3,15,0))) -> 0
F45: Longterm Discounted Premium | G45: =G43-(G44%*G43) -> 0
F46: Service Tax | G46: =12.36%*G45 -> 0
F47: Total Premium | G47: =G46+G45 -> 0

Sheet Flexi Floater (hidden)
A1: Type of family | B1: Loading on primary Insured premium | E1: Master | AD1: 1
A2: 1+1 (Non – Earning) | B2: 0.2 | AD2: 2
A3: 1+1 (Earning) | B3: 0.45 | AD3: 3
A4: 1+1 (Child) | B4: 0.07 | E4: Flexi Family floater - Policy Level (when Total discount > Total Loading) | K4: Flexi Family floater - Policy Level (when Total discount < Total Loading)
A5: 1+2 (Non - Earning +Child) | B5: 0.3
A6: 1+2 (Earning + Child) | B6: 0.55 | E6: Member | F6: Primary Insured | K6: Member | L6: Primary Insured
A7: 1+2 (Children) | B7: 0.2 | E7: Premium | K7: Premium
A8: 1+3 (Non - Earning +2 Children) | B8: 0.45 | E8: Policy Tenure | F8: 1 | K8: Policy Tenure | L8: 1
A9: 1+3 (Earning +2 Children) | B9: 0.66 | E9: Basic Premium | F9: =F8*F7 -> 0 | K9: Basic Premium | L9: =L8*L7 -> 0
E10: Family Floater Loading % | K10: Family Floater Loading %
E11: Loaded Premium | F11: =(F10%*F9)+F9 -> 0 | K11: Loaded Premium | L11: =(L10%*L9)+L9 -> 0
E12: Total Loading | K12: Total Loading
E13: Total Discount | K13: Total Discount
E14: Nulifed | F14: =F13-F12 -> 0 | K14: Nulifed | L14: =L12-L13 -> 0
E15: Discounted Premium | F15: =F11-(F14%*F11) -> 0 | K15: Loaded Premium | L15: =L11+(L14%*L11) -> 0
E16: Longterm Discount | F16: =IF(F8=1,0,IF(F8=2,8,IF(F8=3,15,0))) -> 0 | K16: Longterm Discount | L16: =IF(L8=1,0,IF(L8=2,8,IF(L8=3,15,0))) -> 0
E17: Longterm Discounted Premium | F17: =F15-(F16%*F15) -> 0 | K17: Longterm Discounted Premium | L17: =L15-(L16%*L15) -> 0
E18: Service Tax | F18: =12.36%*F17 -> 0 | K18: Service Tax | L18: =12.36%*L17 -> 0
E19: Total Premium | F19: =F18+F17 -> 0 | K19: Total Premium | L19: =L18+L17 -> 0
E21: Flexi Family floater - Policy Level (when Total discount =Total Loading)
E23: Member | F23: Primary Insured
E24: Premium
E25: Policy Tenure | F25: 1
E26: Basic Premium | F26: =F25*F24 -> 0
E27: Family Floater Loading %
E28: Loaded Premium | F28: =(F27%*F26)+F26 -> 0
E29: Longterm Discount | F29: =IF(F25=1,0,IF(F25=2,8,IF(F25=3,15,0))) -> 0
E30: Longterm Discounted Premium | F30: =F28-(F29%*F28) -> 0
E31: Service Tax | F31: =12.36%*F30 -> 0
E32: Total Premium | F32: =F31+F30 -> 0
E34: Flexi Family floater - Insured level
E36: Member | F36: Primary Insured
E37: Premium
E38: Policy Tenure | F38: 1
E39: Basic Premium | F39: =F38*F37 -> 0
E40: Family Floater Loading %
E41: Loaded Premium | F41: =(F40%*F39)+F39 -> 0
E42: Loading %
E43: Loaded Basic Premium | F43: =(F41*F42%)+F41 -> 0
E44: Discount %
E45: Discounted Premium | F45: =F43-(F44%*F43) -> 0
E46: Longterm Discount | F46: =IF(F38=1,0,IF(F38=2,8,IF(F38=3,15,0))) -> 0
E47: Longterm Discounted Premium | F47: =F45-(F46%*F45) -> 0
E48: Service Tax | F48: =12.36%*F47 -> 0
E49: Total Premium | F49: =F48+F47 -> 0

Sheet Unit (hidden)
AJ1: 1 | AL1: Select | AM1: Select | AN1: I
AJ2: 2 | AL2: Basic | AM2: Yes | AN2: II
F3: Unit - Insured Level | AJ3: 3 | AL3: Wide | AM3: No | AN3: III
C4: Master | AL4: Comprehensive
F5: Member | G5: 1 | H5: 2 | I5: 3 | J5: 4
F6: Plan Type | G6: Select | M6: Net Premium
F7: Risk Category | G7: I | H7: I | I7: I | J7: I
F8: Premium | M8: Risk I | N8: Risk II | O8: Risk III
F9: Policy Tenure | G9: 1 | L9: Basic | M9: 703 | N9: 857 | O9: 1165
F10: Basic Premium | G10: =$G$9*G8 -> 0 | H10: =$G$9*H8 -> 0 | I10: =$G$9*I8 -> 0 | J10: 0 | L10: Wide | M10: 1076 | N10: 1305 | O10: 1748
F11: Loading % | L11: Comprehensive | M11: 1608 | N11: 1960 | O11: 2655
F12: Loaded Basic Premium | G12: =(G10*G11%)+G10 -> 0 | H12: 0 | I12: 0 | J12: =(J10*J11%)+J10 -> 0
F13: Sum of the Premium | G13: =SUM(G12:J12) -> 0
F14: Discount %
F15: Discounted Premium | G15: =G13-(G14%*G13) -> 0
F16: Longterm Discount | G16: =IF(G9=1,0,IF(G9=2,8,IF(G9=3,15,0))) -> 0
F17: Longterm Discounted Premium | G17: =G15-(G16%*G15) -> 0
F18: Service Tax | G18: =12.36%*G17 -> 0
F19: Total Premium | G19: =G18+G17 -> 0
F22: Unit - Policy Level (when Total discount > Total Loading) | L22: Unit - Policy Level (when Total discount < Total Loading)
F24: Member | G24: 1 | H24: 2 | I24: 3 | J24: 4 | L24: Member | M24: 1 | N24: 2 | O24: 3 | P24: 4
F25: Plan Type | G25: Select | L25: Plan Type | M25: Select
F26: Risk Category | G26: I | H26: I | I26: I | J26: I | L26: Risk Category | M26: I | N26: I | O26: I | P26: I
F27: Premium | L27: Premium
F28: Policy Tenure | G28: 1 | L28: Policy Tenure | M28: 1
F29: Basic Premium | G29: =$G$9*G27 -> 0 | H29: =$G$9*H27 -> 0 | I29: =$G$9*I27 -> 0 | J29: 0 | L29: Basic Premium | M29: =$G$9*M27 -> 0 | N29: =$G$9*N27 -> 0 | O29: =$G$9*O27 -> 0 | P29: 0
F30: Sum of Premiums | L30: Sum of Premiums
F31: Total Loading % | L31: Total Loading %
F32: Total Discount % | L32: Total Discount %
F33: Nulified | G33: =G32-G31 -> 0 | L33: Nulified | M33: =M31-M32 -> 0
F34: Discounted Premium | G34: =G30-(G33%*G30) -> 0 | L34: Loaded Premium | M34: =M30+(M33%*M30) -> 0
F35: Longterm Discount | G35: =IF(G28=1,0,IF(G28=2,8,IF(G28=3,15,0))) -> 0 | L35: Longterm Discount | M35: =IF(M28=1,0,IF(M28=2,8,IF(M28=3,15,0))) -> 0
F36: Longterm Discounted Premium | G36: =G34-(G35%*G34) -> 0 | L36: Longterm Discounted Premium | M36: =M34-(M35%*M34) -> 0
F37: Service Tax | G37: =12.36%*G36 -> 0 | L37: Service Tax | M37: =12.36%*M36 -> 0
F38: Total Premium | L38: Total Premium | M38: =M37+M36 -> 0
F41: Unit - Policy Level (when Total discount = Total Loading)
F43: Member | G43: 1 | H43: 2 | I43: 3 | J43: 4
F44: Plan Type | G44: Select
F45: Risk Category | G45: I | H45: I | I45: I | J45: I
F46: Premium
F47: Policy Tenure | G47: 1
F48: Basic Premium | G48: =$G$9*G46 -> 0 | H48: =$G$9*H46 -> 0 | I48: =$G$9*I46 -> 0 | J48: 0
F49: Sum of Premiums | G49: =SUM(G48:J48) -> 0
F50: Longterm Discount | G50: =IF(G47=1,0,IF(G47=2,8,IF(G47=3,15,0))) -> 0
F51: Longterm Discounted Premium | G51: =G49-(G50%*G49) -> 0
F52: Service Tax | G52: =12.36%*G51 -> 0
F53: Total Premium | G53: =G52+G51 -> 0

Sheet Dr Pankaj (hidden)
A2: Net Premium (Flexi) with Add on covers | B2: Class I | C2: 2560 | E2: Flexi-Expected Result
B3: Class II | C3: 3099 | E3: Cover Name | F3: Units/Weeks | G3: Sum Insured | H3: Revised SI | I3: Rate as per Annexure | J3: Premium Amount | M3: Class I | N3: Class II | O3: Class III
B4: Class III | C4: 4157.5 | E4: Accidental Death (AD) | F4: NA | G4: 50000000 | H4: =G4 -> 50000000 | I4: =M4 -> 0.35 | J4: =H4*I4/1000 -> 17500 | M4: 0.35 | N4: 0.46 | O4: 0.69
E5: Permanent Total Disability (PTD) | F5: NA | G5: 50000000 | H5: =G5 -> 50000000 | I5: =M5 -> 0.18 | J5: =H5*I5/1000 -> 9000 | M5: 0.18 | N5: 0.23 | O5: 0.31
A6: Class I | B6: Doctors, Lawyers | E6: Permanent Partial Disability (PPD) | F6: NA | G6: 50000000 | H6: =G6 -> 50000000 | I6: 0.23 | J6: =H6*I6/1000 -> 11500 | M6: 0.23 | N6: 0.28 | O6: 0.35
A7: Class II | B7: Sportsman | E7: Temporary Total Disability (TTD) | F7: 52 | G7: 20000 | H7: =F7*G7 -> 1040000 | I7: 0.38 | J7: =H7*I7/1000 -> 395.2 | M7: 0.38 | N7: 0.57 | O7: 0.95
A8: Class III | B8: Jockeys, Winter sports | E8: Accidental Hospitalization Expenses | F8: NA | G8: 200000 | H8: =G8 -> 200000 | I8: 0.14 | J8: =H8*I8/100 -> 280 | M8: 0.14 | N8: 0.14 | O8: 0.14
E9: Accidental Hospital Daily Cash | F9: 3 | G9: 500 | H9: =F9*G9 -> 1500 | I9: 23 | J9: =I9*F9 -> 69 | M9: 23 | N9: 34 | O9: 54
C10: will be per cent | E10: Child Education Support Benefit | F10: NA | G10: 100000 | H10: =G10 -> 100000 | I10: 0.54 | J10: =H10*I10/1000 -> 54 | M10: 0.54 | N10: 0.69 | O10: 1
C11: Rate not present in Premium Extract | E11: Life Support Benefit | H11: =F11*G11 -> 0 | J11: =I11*F11 -> 0 | M11: 200 | N11: 200 | O11: 200
E12: Loan Protector | F12: 2 | G12: 12000 | H12: =F12*G12 -> 24000 | I12: =M12 -> 250 | J12: =I12*F12 -> 500 | M12: 250 | N12: 250 | O12: 250
E13: Broken Bone | F13: NA | G13: 300000 | H13: =G13 -> 300000 | I13: 0.38 | J13: =H13*I13/1000 -> 114 | M13: 0.38 | N13: 0.57 | O13: 0.95
E14: Modification of Vehicle/Residence | F14: NA | H14: 0 | J14: =H14*I14/1000 -> 0 | M14: 0.42 | N14: 0.51 | O14: 0.66
E15: Family Transport Benefit | F15: NA | H15: 0 | J15: =H15*I15/1000 -> 0 | M15: 0.3 | N15: 0.39 | O15: 0.6
E16: Outstanding Bills Protection Benefit | F16: NA | H16: 0 | J16: =H16*I16/100 -> 0 | M16: 0.29 | N16: 0.38 | O16: 0.58
E17: Ambulance Hiring Charges | F17: NA | G17: 1500 | H17: 1500 | I17: =M17 -> 25 | J17: =I17 -> 25 | M17: 25 | N17: 25 | O17: 25
E18: Legal Bail Expenses | F18: NA | G18: 5000 | H18: 5000 | I18: 80 | J18: =I18 -> 80 | M18: 80 | N18: 80 | O18: 80
E19: Double Indemnity | F19: NA | H19: 0 | J19: =H19*I19/1000 -> 0 | M19: 0.09 | N19: 0.12 | O19: 0.18
E20: Total | F20: NA | G20: =SUM(G4:G19) -> 150639000 | H20: =SUM(H4:H19) -> 151672000 | I20: =SUM(I4:I19) -> 380.2 | J20: =SUM(J4:J19) -> 39517.2
I21: Total Premium | J21: =(J20*15%)+J20 -> 45444.78 | L21: =J20*3 -> 118551.6 | M21: 3 years
L22: =L21*15% -> 17782.74
L23: =L21-L22 -> 100768.86
I24: 2 yr | L24: =L23*114.5% -> 115380.3447 | M24: 54066 | O24: 4996
J25: =J20 -> 39517.2 | O25: =O24*155% -> 7743.8
J26: =J25*2 -> 79034.4
I27: 0.08 | J27: =J26*I27 -> 6322.752
J28: =J26-J27 -> 72711.648
I30: 3 yr
J31: =J20 -> 39517.2
J32: =J31*3 -> 118551.6
I33: 0.15 | J33: =J32*I33 -> 17782.74
J34: =J32-J33 -> 100768.86
C40: Type of family | D40: Loading on primary Insured premium | E40: After Loading Net Premium (our Calculations)
E41: Class I | F41: Class II | G41: Class II
C43: 1+1 (Non – Earning) | D43: 0.2 | E43: =($C$2*D43)+$C$2 -> 3072 | F43: =($C$3*D43)+$C$3 -> 3718.8 | G43: =($C$4*D43)+$C$4 -> 4989
C44: 1+1 (Earning) | D44: 0.45 | E44: 3712 | F44: 4493.55 | G44: 6028.375
C45: 1+1 (Child) | D45: 0.07 | E45: 2739.2 | F45: 3315.93 | G45: 4448.525
C46: 1+2 (Non - Earning +Child) | D46: 0.3 | E46: 3328 | F46: 4028.7 | G46: 5404.75
C47: 1+2 (Earning + Child) | D47: 0.55 | E47: 3968 | F47: 4803.45 | G47: 6444.125
C48: 1+2 (Children) | D48: 0.2 | E48: 3072 | F48: 3718.8 | G48: 4989
C49: 1+3 (Non - Earning +2 Children) | D49: 0.45 | E49: 3712 | F49: 4493.55 | G49: 6028.375
C50: 1+3 (Earning +2 Children) | D50: 0.66 | E50: 4249.6 | F50: 5144.34 | G50: 6901.45
C51: Type of family | D51: Loading on primary Insured premium | E51: After Loading Net Premiums (System displaying)
E52: Class I | F52: Class II | G52: Class II
C54: 1+1 (Non – Earning) | D54: 0.2 | E54: 3072 | F54: 3718.8 | G54: 4989
C55: 1+1 (Earning) | D55: 0.45 | E55: 3712 | F55: 4493.55 | G55: 6028.38
C56: 1+1 (Child) | D56: 0.07 | E56: 2739.2 | F56: 3315.93 | G56: 4448.52
C57: 1+2 (Non - Earning +Child) | D57: 0.3 | E57: 3328 | F57: 4028.7 | G57: 5404.75
C58: 1+2 (Earning + Child) | D58: 0.55 | E58: 3968 | F58: 4803.45 | G58: 6444.13
C59: 1+2 (Children) | D59: 0.2 | E59: 3072 | F59: 3718.8 | G59: 4989
C60: 1+3 (Non - Earning +2 Children) | D60: 0.45 | E60: 3712 | F60: 4493.55 | G60: 6028.38
C61: 1+3 (Earning +2 Children) | D61: 0.66 | E61: 4249.6 | F61: 5144.34 | G61: 6901.45

Sheet ipa
A2: Net Premium (Flexi) with Add on covers | B2: Class I | C2: 2560 | E2: Flexi-Expected Result | M2: Premium rates per 1000 sum insured as per Risk category
B3: Class II | C3: 3099 | E3: Cover Name | F3: Units/Weeks | G3: Sum Insured | H3: Sum Insured | I3: Rate as per Annexure | J3: Premium Amount | M3: Class I | N3: Class II | O3: Class III | R3: Plan | S3: SI | T3: SI | U3: SI | V3: SI | W3: SI | X3: SI | Y3: SI | Z3: SI | AA3: SI | AB3: SI | AC3: SI | AD3: SI | AE3: SI | AF3: SI | AG3: SI | AH3: SI | AI3: SI | AJ3: SI | AK3: SI | AL3: SI
B4: Class III | C4: 4157.5 | E4: Accidental Death (AD) | F4: NA | G4: 0 | H4: 500000 | I4: =M4 -> 0.35 | J4: =H4*I4/1000 -> 175 | M4: 0.35 | N4: 0.46 | O4: 0.69 | R4: Accidental Death (AD) | S4: 100000 | T4: 200000 | U4: 300000 | V4: 400000 | W4: 500000 | X4: 600000 | Y4: 700000 | Z4: 800000 | AA4: 900000 | AB4: 1000000 | AC4: 1100000 | AD4: 1200000 | AE4: 1300000 | AF4: 1400000 | AG4: 1500000 | AH4: 1600000 | AI4: 1700000 | AJ4: 1800000 | AK4: 1900000 | AL4: 2000000 | AP4: Note- AD must be Higher than any other coverage
E5: Permanent Total Disability (PTD) | F5: NA | G5: 0 | H5: 500000 | I5: =M5 -> 0.18 | J5: =H5*I5/1000 -> 90 | M5: 0.18 | N5: 0.23 | O5: 0.31 | R5: Permanent Total Disability (PTD) | S5: 100000 | T5: 200000 | U5: 300000 | V5: 400000 | W5: 500000 | X5: 600000 | Y5: 700000 | Z5: 800000 | AA5: 900000 | AB5: 1000000 | AC5: 1100000 | AD5: 1200000 | AE5: 1300000 | AF5: 1400000 | AG5: 1500000 | AH5: 1600000 | AI5: 1700000 | AJ5: 1800000 | AK5: 1900000 | AL5: 2000000 | AP5: PTD, PPD, TTD cannot be higher than AD
A6: Class I | B6: Doctors, Lawyers | E6: Permanent Partial Disability (PPD) | F6: NA | G6: 0 | H6: 500000 | I6: 0.23 | J6: =H6*I6/1000 -> 115 | M6: 0.23 | N6: 0.28 | O6: 0.35 | R6: Permanent Partial Disability (PPD) | S6: 100000 | T6: 200000 | U6: 300000 | V6: 400000 | W6: 500000 | X6: 600000 | Y6: 700000 | Z6: 800000 | AA6: 900000 | AB6: 1000000 | AC6: 1100000 | AD6: 1200000 | AE6: 1300000 | AF6: 1400000 | AG6: 1500000 | AH6: 1600000 | AI6: 1700000 | AJ6: 1800000 | AK6: 1900000 | AL6: 2000000
A7: Class II | B7: Sportsman | E7: Temporary Total Disability (TTD) | F7: 52 | G7: 0 | H7: 500000 | I7: 0.38 | J7: =H7*I7/1000 -> 190 | M7: 0.38 | N7: 0.57 | O7: 0.95 | R7: Broken Bones | S7: 5000 | T7: NA | U7: NA | V7: NA | W7: NA | X7: NA | Y7: NA | Z7: NA | AA7: NA | AB7: NA | AC7: NA | AD7: NA | AE7: NA | AF7: NA | AG7: NA | AH7: NA | AI7: NA | AJ7: NA | AK7: NA | AL7: NA
A8: Class III | B8: Jockeys, Winter sports | E8: Accidental Hospitalization Expenses | F8: NA | G8: 0 | H8: =G8 -> 0 | I8: 0.14 | J8: =H8*I8/100 -> 0 | M8: 0.14 | N8: 0.14 | O8: 0.14 | R8: Child Education Benefit | S8: 10000 | T8: 10000 | U8: 10000 | V8: 10000 | W8: 10000 | X8: 10000 | Y8: 10000 | Z8: 10000 | AA8: 10000 | AB8: 10000 | AC8: 10000 | AD8: 10000 | AE8: 10000 | AF8: 10000 | AG8: 10000 | AH8: 10000 | AI8: 10000 | AJ8: 10000 | AK8: 10000 | AL8: 10000
E9: Accidental Hospital Daily Cash | F9: 0 | G9: 0 | H9: 0 | I9: 23 | J9: =I9*F9 -> 0 | M9: 23 | N9: 34 | O9: 54 | R9: Performance Of Funreal Ceremony | S9: 10000 | T9: 10000 | U9: 10000 | V9: 10000 | W9: 10000 | X9: 10000 | Y9: 10000 | Z9: 10000 | AA9: 10000 | AB9: 10000 | AC9: 10000 | AD9: 10000 | AE9: 10000 | AF9: 10000 | AG9: 10000 | AH9: 10000 | AI9: 10000 | AJ9: 10000 | AK9: 10000 | AL9: 10000
C10: will be per cent | E10: Child Education Support Benefit | F10: NA | G10: 0 | H10: =G10 -> 0 | I10: 0.54 | J10: =H10*I10/1000 -> 0 | M10: 0.54 | N10: 0.69 | O10: 1 | R10: Transportaion Of Mortal Remains | S10: 10000 | T10: 10000 | U10: 10000 | V10: 10000 | W10: 10000 | X10: 10000 | Y10: 10000 | Z10: 10000 | AA10: 10000 | AB10: 10000 | AC10: 10000 | AD10: 10000 | AE10: 10000 | AF10: 10000 | AG10: 10000 | AH10: 10000 | AI10: 10000 | AJ10: 10000 | AK10: 10000 | AL10: 10000
C11: Rate not present in Premium Extract | E11: Life Support Benefit | H11: =F11*G11 -> 0 | I11: 200 | J11: 200 | M11: 200 | N11: 200 | O11: 200
E12: Loan Protector | F12: 0 | G12: 0 | H12: =F12*G12 -> 0 | I12: =M12 -> 250 | J12: =I12*F12 -> 0 | M12: 250 | N12: 250 | O12: 250
E13: Broken Bone | F13: NA | G13: 0 | H13: =G13 -> 0 | I13: 0.38 | J13: =H13*I13/1000 -> 0 | M13: 0.38 | N13: 0.57 | O13: 0.95
E14: Modification of Vehicle/Residence | F14: NA | H14: 0 | J14: =H14*I14/1000 -> 0 | M14: 0.42 | N14: 0.51 | O14: 0.66
E15: Family Transport Benefit | F15: NA | H15: 0 | J15: =H15*I15/1000 -> 0 | M15: 0.3 | N15: 0.39 | O15: 0.6
E16: Outstanding Bills Protection Benefit | F16: NA | H16: 0 | J16: =H16*I16/100 -> 0 | M16: 0.29 | N16: 0.38 | O16: 0.58
E17: Ambulance Hiring Charges | F17: NA | G17: 1500 | H17: 1500 | I17: =M17 -> 25 | J17: =I17 -> 25 | M17: 25 | N17: 25 | O17: 25
E18: Legal Bail Expenses | F18: NA | G18: 5000 | H18: 5000 | I18: 80 | J18: =I18 -> 80 | M18: 80 | N18: 80 | O18: 80
E19: Double Indemnity | F19: NA | H19: 0 | J19: =H19*I19/1000 -> 0 | M19: 0.09 | N19: 0.12 | O19: 0.18
E20: Total | F20: NA | H20: =SUM(H4:H19) -> 2006500 | J20: =SUM(J4:J19) -> 875
I21: Total Premium | J21: =(J20*18%)+J20 -> 1032.5
I24: 2 yr
J25: =J20 -> 875
J26: =J25*2 -> 1750
I27: 0.08 | J27: =J26*I27 -> 140
J28: =J26-J27 -> 1610
I30: 3 yr
J31: =J20 -> 875
J32: =J31*3 -> 2625
I33: 0.15 | J33: =J32*I33 -> 393.75
J34: =J32-J33 -> 2231.25
C40: Type of family | D40: Loading on primary Insured premium | E40: After Loading Net Premium (our Calculations)
E41: Class I | F41: Class II | G41: Class II
C43: 1+1 (Non – Earning) | D43: 0.2 | E43: =($C$2*D43)+$C$2 -> 3072 | F43: =($C$3*D43)+$C$3 -> 3718.8 | G43: =($C$4*D43)+$C$4 -> 4989
C44: 1+1 (Earning) | D44: 0.45 | E44: 3712 | F44: 4493.55 | G44: 6028.375
C45: 1+1 (Child) | D45: 0.07 | E45: 2739.2 | F45: 3315.93 | G45: 4448.525
C46: 1+2 (Non - Earning +Child) | D46: 0.3 | E46: 3328 | F46: 4028.7 | G46: 5404.75
C47: 1+2 (Earning + Child) | D47: 0.55 | E47: 3968 | F47: 4803.45 | G47: 6444.125
C48: 1+2 (Children) | D48: 0.2 | E48: 3072 | F48: 3718.8 | G48: 4989
C49: 1+3 (Non - Earning +2 Children) | D49: 0.45 | E49: 3712 | F49: 4493.55 | G49: 6028.375
C50: 1+3 (Earning +2 Children) | D50: 0.66 | E50: 4249.6 | F50: 5144.34 | G50: 6901.45
C51: Type of family | D51: Loading on primary Insured premium | E51: After Loading Net Premiums (System displaying)
E52: Class I | F52: Class II | G52: Class II
C54: 1+1 (Non – Earning) | D54: 0.2 | E54: 3072 | F54: 3718.8 | G54: 4989
C55: 1+1 (Earning) | D55: 0.45 | E55: 3712 | F55: 4493.55 | G55: 6028.38
C56: 1+1 (Child) | D56: 0.07 | E56: 2739.2 | F56: 3315.93 | G56: 4448.52
C57: 1+2 (Non - Earning +Child) | D57: 0.3 | E57: 3328 | F57: 4028.7 | G57: 5404.75
C58: 1+2 (Earning + Child) | D58: 0.55 | E58: 3968 | F58: 4803.45 | G58: 6444.13
C59: 1+2 (Children) | D59: 0.2 | E59: 3072 | F59: 3718.8 | G59: 4989
C60: 1+3 (Non - Earning +2 Children) | D60: 0.45 | E60: 3712 | F60: 4493.55 | G60: 6028.38
C61: 1+3 (Earning +2 Children) | D61: 0.66 | E61: 4249.6 | F61: 5144.34 | G61: 6901.45

Sheet Summary (hidden)
A1: Coverage | B1: G Satyanarayana | C1: Mrs Goli
A2: AD | B2: 10000000 | C2: 8000000
A3: PTD | B3: As per table | C3: As per table
A4: PPD | B4: As per table | C4: As per table
A5: TTD | B5: 20000 per week for max 52 weeks | C5: 20000 per week for max 52 weeks
A6: Child Education Benefit | B6: 10000 | C6: 10000
A7: Cost of Transporting Mortal Remains | B7: 10000 | C7: 10000
A8: Cost of Performance of Death Ceremony | B8: 10000 | C8: 10000
A9: Child Education Support Benefit | B9: 100000 | C9: 100000
A10: Accidental Hospitalization Expenses | B10: 200000 | C10: 200000
A11: Accidental Hospital Daily Cash | B11: 1,500 per day for max 30 days | C11: 1,500 per day for max 30 days
A12: Loan Protector | B12: 24,000 per month for max 12 months | C12: 24,000 per month for max 12 months
A13: Broken Bone | B13: 300000 | C13: 300000
A14: Ambulance Hiring Charges | B14: 1500 | C14: 1500
A15: Legal Bail Expenses | B15: 5000 | C15: 5000
A16: Double Indemnity | B16: 100% CSI | C16: 100% CSI
A17: Premium without tax for 1 year | B17: 10017 | C17: 8250
A18: Premium without tax for 3 year | B18: =B17*3 -> 30051 | C18: =C17*3 -> 24750
B19: =B18+C18 -> 54801
A20: Family discount 5% | B20: =B19*95% -> 52060.95
A21: Long term discount 15% | B21: =B20*85% -> 44251.8075
A22: Final Premium with tax 14.5% for 3 year | B22: 50668
